fUSD/lending_fUSD_20260314
["ID","MTS","AMOUNT","RATE_DAILY","PERIOD"]
[408369686,1773510640294,-151.0,0.00015576,2]
[408369687,1773510640303,-151.0,0.00015576,2]
[408369688,1773510640313,-151.0,0.00015576,2]
[408369689,1773510640322,-151.0,0.00015576,2]
[408369690,1773510640332,-151.0,0.00015576,2]
[408369691,1773510640341,-151.0,0.00015576,2]
[408369692,1773510640351,-151.0,0.00015576,2]
[408369693,1773510640360,-151.0,0.00015576,2]
[408369694,1773510640369,-151.0,0.00015576,2]
[408369695,1773510640379,-151.0,0.00015576,2]
[408369696,1773510640388,-151.0,0.00015576,2]
[408369697,1773510640397,-151.0,0.00015576,2]
[408369698,1773510640406,-151.0,0.00015576,2]
[408369699,1773510640415,-151.0,0.00015576,2]
[408369700,1773510640424,-278.54774132,0.00015576,2]
[408369702,1773510640433,-786.35,0.00015576,2]
[408369704,1773510640442,-500.0,0.00015584,2]
[408369705,1773510640451,-1412.88148175,0.00015584,2]
[408369706,1773510640459,-138699.84309648,0.00015585,2]
[408369714,1773510642508,-339.16500984,0.00015585,2]
[408369719,1773510645342,-5555.0482712,0.00015585,2]
[408369720,1773510645354,-576.71314428,0.00015585,2]
[408369721,1773510645659,-500.0,0.00015475,2]
[408369722,1773510645670,-500.0,0.00015475,2]
[408369723,1773510645681,-500.0,0.00015475,2]
[408369724,1773510645692,-500.0,0.00015475,2]
[408369725,1773510645702,-500.0,0.00015475,2]
[408369726,1773510645712,-250.0,0.00015475,2]
[408369727,1773510645722,-500.0,0.00015475,2]
[408369728,1773510645734,-8698.24455199,0.00015585,2]
[408369732,1773510715228,800.0,0.0002,120]
[408369733,1773510726445,500.0,0.00013984,2]
[408369735,1773510738987,600.0,0.00013984,2]
[408369736,1773510751530,500.0,0.0002,120]
[408369737,1773510759465,500.0,0.0002,120]
[408369739,1773510767342,500.0,0.0002,120]
[408369774,1773511831563,-870.98,0.00014191,2]
[408369775,1773511831572,-561.6353019,0.0001422,2]
[408369776,1773511831586,-38.3646981,0.0001422,2]
[408369777,1773511831595,-284.22851578,0.00014249,2]
[408369778,1773511831608,-1189.12837617,0.00014249,2]
[408369779,1773511831619,-2000.0,0.00014308,2]
[408369780,1773511831633,-200.26183164,0.0001437,2]
[408369781,1773511831643,-300.0,0.00014552,2]
[408369782,1773511831652,-1200.0,0.00014552,2]
[408369783,1773511831662,-2681.86,0.00014553,2]
[408369784,1773511831672,-1600.0,0.00014553,2]
[408369785,1773511831682,-406.21,0.00014553,2]
[408369786,1773511831691,-611.85872727,0.00014561,2]
[408369787,1773511831711,-260.03248731,0.00014561,2]
[408369788,1773511831726,-49741.87154939,0.00014561,2]
[408369790,1773511831739,-252.17238759,0.00014561,2]
[408369793,1773511831750,-18612.72017586,0.00014561,2]
[408369795,1773511831762,-1483.02344022,0.00014561,2]
[408369798,1773511831778,-3625.58942686,0.00014561,2]
[408369806,1773511837614,-181.02508177,0.0001456,2]
[408369807,1773511837624,-500.0,0.0001456,2]
[408369808,1773511837634,-186.61738708,0.0001456,2]
[408369809,1773511837772,-235.18514438,0.0001456,2]
[408369810,1773511837782,-500.0,0.0001456,2]
[408369811,1773511837792,-258.22851116,0.0001456,2]
[408369812,1773511837802,-500.0,0.0001456,2]
[408369813,1773511837812,-500.0,0.0001456,2]
[408369814,1773511837822,-500.0,0.0001456,2]
[408369815,1773511837834,-500.0,0.0001456,2]
[408369816,1773511837843,-500.0,0.0001456,2]
[408369817,1773511837854,-500.0,0.0001456,2]
[408369818,1773511837866,-500.0,0.0001456,2]
[408369819,1773511837886,-500.0,0.0001456,2]
[408369821,1773511837905,-500.0,0.0001456,2]
[408369823,1773511837915,-500.0,0.0001456,2]
[408369825,1773511837924,-500.0,0.0001456,2]
[408369827,1773511837935,-563.55339677,0.0001456,2]
[408369829,1773511837945,-500.0,0.0001456,2]
[408369830,1773511837955,-500.0,0.0001456,2]
[408369832,1773511837964,-535.00010524,0.0001456,2]
[408369834,1773511837974,-500.0,0.0001456,2]
[408369836,1773511837983,-500.0,0.0001456,2]
[408369838,1773511837993,-500.0,0.0001456,2]
[408369840,1773511838003,-500.0,0.0001456,2]
[408369842,1773511838012,-500.0,0.0001456,2]
[408369844,1773511838022,-500.0,0.0001456,2]
[408369846,1773511838031,-500.0,0.0001456,2]
[408369848,1773511838048,-500.0,0.0001456,2]
[408369850,1773511838057,-500.0,0.0001456,2]
[408369852,1773511838066,-500.0,0.0001456,2]
[408369854,1773511838077,-500.0,0.0001456,2]
[408369856,1773511838086,-500.0,0.0001456,2]
[408369858,1773511838095,-500.0,0.0001456,2]
[408369860,1773511838104,-500.0,0.0001456,2]
[408369862,1773511838113,-500.0,0.0001456,2]
[408369863,1773511838123,-500.0,0.0001456,2]
[408369865,1773511838132,-500.0,0.0001456,2]
[408369866,1773511838141,-500.0,0.0001456,2]
[408369867,1773511838150,-500.0,0.0001456,2]
[408369868,1773511838159,-500.0,0.0001456,2]
[408369869,1773511838169,-500.0,0.0001456,2]
[408369870,1773511838178,-500.0,0.0001456,2]
[408369871,1773511838187,-500.0,0.0001456,2]
[408369872,1773511838197,-500.0,0.0001456,2]
[408369873,1773511838206,-500.0,0.0001456,2]
[408369874,1773511838215,-500.0,0.0001456,2]
[408369875,1773511838225,-500.0,0.0001456,2]
[408369876,1773511838234,-500.0,0.0001456,2]
[408369877,1773511838243,-500.0,0.0001456,2]
[408369878,1773511838252,-500.0,0.0001456,2]
[408369879,1773511838262,-500.0,0.0001456,2]
[408369880,1773511838271,-500.0,0.0001456,2]
[408369881,1773511838284,-500.0,0.0001456,2]
[408369882,1773511838293,-500.0,0.0001456,2]
[408369883,1773511838303,-500.0,0.0001456,2]
[408369884,1773511838311,-500.0,0.0001456,2]
[408369885,1773511838320,-500.0,0.0001456,2]
[408369886,1773511838330,-500.0,0.0001456,2]
[408369887,1773511838339,-500.0,0.0001456,2]
[408369888,1773511838349,-500.0,0.0001456,2]
[408369889,1773511838360,-500.0,0.0001456,2]
[408369890,1773511838369,-500.0,0.0001456,2]
[408369891,1773511838378,-500.0,0.0001456,2]
[408369892,1773511838387,-4668.2153949,0.00014561,2]
[408369895,1773511840155,-557.94431981,0.00014561,2]
[408369913,1773511842994,-426.85634433,0.00014561,2]
[408370100,1773511845698,-1256.91365521,0.00014561,2]
[408370101,1773511845710,-12184.38483862,0.00014561,2]
[408370102,1773511845912,-1345.00163473,0.00014561,2]
[408370104,1773511845968,-344.62298632,0.00014561,2]
[408370106,1773511845982,-676.87939562,0.00014561,2]
[408370409,1773512043628,-2441.479,0.0001427,2]
[408370410,1773512043651,-177.589,0.0001427,2]
[408370411,1773512043673,-300.0,0.00014472,2]
[408370412,1773512043695,-300.0,0.00014472,2]
[408370413,1773512043726,-7336.0142787,0.00014473,2]
[408370414,1773512043746,-153.1314123,0.00014473,2]
[408370415,1773512043770,-4195.58951803,0.00014485,2]
[408370416,1773512043794,-10271.54295851,0.00014485,2]
[408370417,1773512043817,-8279.03743514,0.00014485,2]
[408370418,1773512043844,-1645.61639732,0.00014485,2]
[408370420,1773512070720,-10174.41360226,0.00014473,2]
[408370421,1773512070746,-525.58639774,0.00014485,2]
[408370436,1773512587842,1372.14819821,0.00013745,2]
[408370437,1773512587864,5233.24180179,0.00013745,2]
[408370438,1773512689442,212.52,0.00010988,2]
[408370439,1773512802816,150.0,0.0001372,2]
[408370440,1773512866693,784.52,0.00011507,2]
[408370441,1773513013653,200.0,0.00013765,2]
[408370453,1773513031760,-200.0,0.00014072,2]
[408370454,1773513031770,-250.0,0.00014072,2]
[408370455,1773513031780,-75.79675041,0.00014072,2]
[408370456,1773513031792,-195.34214621,0.00014072,2]
[408370457,1773513031803,-147.62285379,0.00014072,2]
[408370458,1773513031836,-265.39554219,0.00014072,2]
[408370459,1773513031846,-182.54925487,0.00014373,2]
[408370460,1773513031856,-1200.0,0.00014471,2]
[408370461,1773513031866,-300.0,0.00014484,2]
[408370462,1773513031876,-300.0,0.00014484,2]
[408370464,1773513031886,-300.0,0.00014484,2]
[408370466,1773513031895,-4541.55520294,0.00014485,2]
[408370469,1773513031912,-2562.53219878,0.00014485,2]
[408370470,1773513031923,-879.6614825,0.00014485,2]
[408370472,1773513031933,-892.86053309,0.00014508,2]
[408370474,1773513031943,-499.03336123,0.00014508,2]
[408370476,1773513031952,-1953.183,0.00014508,2]
[408370478,1773513031961,-177.58992952,0.00014508,2]
[408370480,1773513031971,-150.0,0.00014508,2]
[408370482,1773513031980,-3481.3428338,0.00014509,2]
[408370484,1773513031990,-66121.322064,0.00014509,2]
[408370485,1773513032000,-26823.0968464,0.00014509,2]
[408370487,1773513032011,-500.0,0.00014537,2]
[408370489,1773513032021,-1152.67,0.00014537,2]
[408370490,1773513032029,-150.99,0.00014537,2]
[408370491,1773513032038,-35244.47246005,0.00014537,2]
[408370493,1773513037870,-400.93977782,0.00014537,2]
[408370494,1773513037882,-7436.56776213,0.00014537,2]
[408370495,1773513037893,-9999.99,0.00014537,2]
[408370496,1773513037903,-150.99,0.00014537,2]
[408370497,1773513037913,-9999.99,0.00014537,2]
[408370498,1773513037923,-999.99,0.00014537,2]
[408370499,1773513037934,-9999.99,0.00014537,2]
[408370500,1773513037945,-313.56,0.00014537,2]
[408370501,1773513037955,-27965.8,0.00014537,2]
[408370502,1773513037965,-1162.38,0.00014552,2]
[408370503,1773513037975,-500.0,0.00014552,2]
[408370505,1773513037984,-200.0,0.00014552,2]
[408370507,1773513037994,-151.0,0.00014552,2]
[408370508,1773513038004,-151.0,0.00014552,2]
[408370509,1773513038015,-151.0,0.00014552,2]
[408370510,1773513038024,-151.0,0.00014552,2]
[408370511,1773513038034,-151.0,0.00014552,2]
[408370512,1773513038044,-151.0,0.00014552,2]
[408370513,1773513038053,-151.0,0.00014552,2]
[408370514,1773513038062,-151.0,0.00014552,2]
[408370515,1773513038072,-151.0,0.00014552,2]
[408370516,1773513038081,-151.0,0.00014552,2]
[408370517,1773513038091,-151.0,0.00014552,2]
[408370518,1773513038100,-151.0,0.00014552,2]
[408370519,1773513038109,-151.0,0.00014552,2]
[408370521,1773513038119,-151.0,0.00014552,2]
[408370523,1773513038128,-151.0,0.00014552,2]
[408370525,1773513038137,-151.0,0.00014552,2]
[408370527,1773513038146,-151.0,0.00014552,2]
[408370529,1773513038157,-151.0,0.00014552,2]
[408370530,1773513038167,-151.0,0.00014552,2]
[408370531,1773513038180,-151.0,0.00014552,2]
[408370532,1773513038189,-151.0,0.00014552,2]
[408370533,1773513038199,-151.0,0.00014552,2]
[408370534,1773513038210,-278.54774132,0.00014552,2]
[408370535,1773513038221,-151.0,0.00014558,2]
[408370536,1773513038232,-500.0,0.0001456,2]
[408370537,1773513038242,-500.0,0.0001456,2]
[408370538,1773513038252,-500.0,0.0001456,2]
[408370539,1773513038261,-500.0,0.0001456,2]
[408370540,1773513038270,-500.0,0.0001456,2]
[408370541,1773513038280,-500.0,0.0001456,2]
[408370542,1773513038289,-500.0,0.0001456,2]
[408370543,1773513038299,-500.0,0.0001456,2]
[408370544,1773513038309,-500.0,0.0001456,2]
[408370545,1773513038318,-500.0,0.0001456,2]
[408370546,1773513038328,-500.0,0.0001456,2]
[408370547,1773513038338,-500.0,0.0001456,2]
[408370548,1773513038347,-500.0,0.0001456,2]
[408370549,1773513038359,-500.0,0.0001456,2]
[408370550,1773513038370,-500.0,0.0001456,2]
[408370551,1773513038383,-500.0,0.0001456,2]
[408370552,1773513038393,-219.99622483,0.0001456,2]
[408370553,1773513038403,-500.0,0.0001456,2]
[408370554,1773513038412,-500.0,0.00014561,2]
[408370555,1773513038422,-479.4137006,0.00014561,2]
[408370556,1773513038431,-3240.0,0.00014573,2]
[408370557,1773513038441,-436.0,0.0001463,2]
[408370558,1773513038451,-151.0,0.00014634,2]
[408370559,1773513038460,-500.0,0.00014745,2]
[408370560,1773513038469,-500.0,0.00014745,2]
[408370561,1773513038479,-500.0,0.00014745,2]
[408370562,1773513038488,-500.0,0.00014745,2]
[408370563,1773513038497,-500.0,0.00014745,2]
[408370564,1773513038507,-500.0,0.00014745,2]
[408370565,1773513038517,-500.0,0.00014745,2]
[408370566,1773513038527,-500.0,0.00014745,2]
[408370567,1773513038536,-500.0,0.00014745,2]
[408370568,1773513038545,-500.0,0.00014745,2]
[408370569,1773513038555,-500.0,0.00014745,2]
[408370570,1773513038564,-500.0,0.00014745,2]
[408370571,1773513038574,-500.0,0.00014745,2]
[408370572,1773513038585,-500.0,0.00014745,2]
[408370573,1773513038594,-466.67085441,0.00014745,2]
[408370574,1773513038604,-11963.85901596,0.00014761,2]
[408370575,1773513038616,-316.0,0.00014804,2]
[408370576,1773513038626,-301.0,0.00014826,2]
[408370577,1773513038636,-1162.38,0.00014826,2]
[408370578,1773513038645,-500.0,0.00014826,2]
[408370579,1773513038655,-1100.0,0.000149,5]
[408370580,1773513038664,-166.66,0.00014973,2]
[408370581,1773513038675,-1275.04516818,0.00014976,2]
[408370582,1773513038685,-250.0,0.00015,2]
[408370583,1773513038695,-500.0,0.00015034,2]
[408370584,1773513038706,-500.0,0.00015034,2]
[408370585,1773513038718,-250.0,0.00015034,2]
[408370586,1773513038728,-250.0,0.00015034,2]
[408370587,1773513038738,-250.0,0.00015034,2]
[408370588,1773513038748,-250.0,0.00015034,2]
[408370589,1773513038759,-250.0,0.00015034,2]
[408370590,1773513038770,-250.0,0.00015034,2]
[408370591,1773513038781,-500.0,0.00015034,2]
[408370592,1773513038793,-1500.0,0.00015034,2]
[408370593,1773513038802,-250.0,0.00015034,2]
[408370594,1773513038812,-1500.0,0.00015034,2]
[408370595,1773513038822,-500.0,0.00015034,2]
[408370596,1773513038832,-250.0,0.00015034,2]
[408370597,1773513038842,-1500.0,0.00015034,2]
[408370598,1773513038853,-500.0,0.00015034,2]
[408370599,1773513038862,-151.0,0.00015034,2]
[408370600,1773513038871,-250.0,0.00015034,2]
[408370601,1773513038880,-1500.0,0.00015034,2]
[408370602,1773513038890,-156.587,0.00015034,2]
[408370603,1773513038899,-500.0,0.00015034,2]
[408370604,1773513038908,-250.0,0.00015034,2]
[408370605,1773513038918,-1000.0,0.00015034,2]
[408370606,1773513038928,-193.72615937,0.00015034,2]
[408370607,1773513038939,-500.0,0.00015034,2]
[408370608,1773513038950,-500.0,0.00015034,2]
[408370609,1773513038960,-500.0,0.00015034,2]
[408370610,1773513038970,-500.0,0.00015034,2]
[408370611,1773513038980,-250.0,0.00015034,2]
[408370612,1773513038989,-500.0,0.00015034,2]
[408370613,1773513039000,-250.0,0.00015034,2]
[408370614,1773513039010,-500.0,0.00015034,2]
[408370615,1773513039019,-250.0,0.00015034,2]
[408370616,1773513039030,-250.0,0.00015034,2]
[408370617,1773513039040,-250.0,0.00015034,2]
[408370618,1773513039051,-250.0,0.00015034,2]
[408370619,1773513039061,-250.0,0.00015034,2]
[408370620,1773513039070,-250.0,0.00015034,2]
[408370621,1773513039080,-250.0,0.00015034,2]
[408370622,1773513039089,-250.0,0.00015034,2]
[408370623,1773513039099,-500.0,0.00015034,2]
[408370624,1773513039108,-500.0,0.00015034,2]
[408370625,1773513039117,-500.0,0.00015034,2]
[408370626,1773513039131,-500.0,0.00015034,2]
[408370627,1773513039141,-500.0,0.00015034,2]
[408370628,1773513039154,-500.0,0.00015034,2]
[408370629,1773513039164,-500.0,0.00015034,2]
[408370630,1773513039174,-500.0,0.00015034,2]
[408370631,1773513039183,-500.0,0.00015034,2]
[408370632,1773513039192,-500.0,0.00015034,2]
[408370633,1773513039201,-182.07,0.00015035,2]
[408370634,1773513039212,-168.34,0.0001505,2]
[408370635,1773513039222,-407.24,0.00015065,2]
[408370636,1773513039233,-1162.38,0.000151,2]
[408370637,1773513039243,-500.0,0.000151,2]
[408370638,1773513039254,-200.0,0.000151,2]
[408370639,1773513039263,-4714.0,0.00015138,2]
[408370640,1773513039272,-500.0,0.00015178,2]
[408370641,1773513039281,-5000.0,0.0001521,2]
[408370642,1773513039291,-168.0,0.00015211,2]
[408370643,1773513039302,-168.0,0.00015285,2]
[408370644,1773513039312,-7327.40330243,0.00015299,2]
[408370645,1773513039321,-500.0,0.00015312,2]
[408370646,1773513039331,-500.0,0.00015312,2]
[408370647,1773513039342,-500.0,0.00015312,2]
[408370648,1773513039351,-500.0,0.00015312,2]
[408370649,1773513039360,-500.0,0.00015312,2]
[408370650,1773513039371,-500.0,0.00015312,2]
[408370651,1773513039381,-356.35533968,0.00015312,2]
[408370652,1773513039391,-500.0,0.00015312,2]
[408370653,1773513039401,-500.0,0.00015312,2]
[408370654,1773513039410,-500.0,0.00015312,2]
[408370655,1773513039419,-500.0,0.00015312,2]
[408370656,1773513039429,-500.0,0.00015312,2]
[408370657,1773513039439,-500.0,0.00015312,2]
[408370658,1773513039448,-500.0,0.00015312,2]
[408370659,1773513039458,-496.36185823,0.00015312,2]
[408370660,1773513039468,-500.0,0.00015312,2]
[408370661,1773513039478,-500.0,0.00015312,2]
[408370662,1773513039487,-500.0,0.00015312,2]
[408370663,1773513039498,-32619.85335079,0.00015313,2]
[408370664,1773513039507,-406.21,0.00015361,2]
[408370665,1773513039519,-328.47473321,0.00015373,2]
[408370666,1773513039528,-500.0,0.00015373,2]
[408370667,1773513039537,-500.0,0.00015373,2]
[408370668,1773513039547,-500.0,0.00015373,2]
[408370669,1773513039557,-500.0,0.00015373,2]
[408370670,1773513039567,-486.15581931,0.00015373,2]
[408370671,1773513039576,-500.0,0.00015373,2]
[408370672,1773513039585,-500.0,0.00015373,2]
[408370673,1773513039594,-500.0,0.00015373,2]
[408370674,1773513039603,-500.0,0.00015373,2]
[408370675,1773513039616,-500.0,0.00015373,2]
[408370676,1773513039628,-1162.38,0.00015374,2]
[408370677,1773513039638,-500.0,0.00015374,2]
[408370678,1773513039649,-4714.0,0.00015383,2]
[408370679,1773513039661,-500.0,0.00015399,2]
[408370680,1773513039670,-500.0,0.00015399,2]
[408370682,1773513039680,-500.0,0.00015399,2]
[408370683,1773513039690,-500.0,0.00015399,2]
[408370685,1773513039700,-500.0,0.00015399,2]
[408370686,1773513039709,-500.0,0.00015399,2]
[408370687,1773513039718,-500.0,0.00015399,2]
[408370688,1773513039727,-500.0,0.00015399,2]
[408370689,1773513039738,-500.0,0.00015399,2]
[408370690,1773513039748,-500.0,0.00015399,2]
[408370691,1773513039757,-500.0,0.00015399,2]
[408370692,1773513039766,-500.0,0.00015399,2]
[408370693,1773513039921,-500.0,0.00015399,2]
[408370694,1773513039932,-500.0,0.00015399,2]
[408370695,1773513039941,-500.0,0.00015399,2]
[408370696,1773513039951,-500.0,0.00015399,2]
[408370697,1773513039962,-500.0,0.00015399,2]
[408370698,1773513039971,-500.0,0.00015399,2]
[408370699,1773513039981,-500.0,0.00015399,2]
[408370700,1773513039990,-500.0,0.00015399,2]
[408370701,1773513039999,-500.0,0.00015399,2]
[408370702,1773513040009,-554.07454248,0.00015399,2]
[408370703,1773513040019,-168.0,0.00015407,2]
[408370704,1773513040030,-168.0,0.0001542,2]
[408370705,1773513040040,-250.0,0.00015452,2]
[408370706,1773513040050,-407.24,0.00015469,2]
[408370707,1773513040060,-214.7229224,0.00015476,2]
[408370708,1773513040071,-500.0,0.00015479,2]
[408370709,1773513040080,-3102.83301671,0.00015479,2]
[408370710,1773513040352,-2.157581,0.00015479,2]
[408370711,1773513040375,-1895.00940229,0.00015479,2]
[408370712,1773513040385,-600.0,0.00015479,2]
[408370713,1773513040395,-250.0,0.00015479,2]
[408370714,1773513040405,-4349.70124872,0.00015479,2]
[408370715,1773513040414,-300.0,0.00015479,2]
[408370716,1773513040423,-4567.4689736,0.00015479,2]
[408370717,1773513040432,-250.0,0.00015479,2]
[408370718,1773513040442,-878.32,0.00015517,2]
[408370719,1773513040451,-168.0,0.00015539,2]
[408370720,1773513040460,-168.0,0.00015568,2]
[408370721,1773513040469,-500.0,0.00015572,2]
[408370723,1773513040479,-500.0,0.00015572,2]
[408370725,1773513040488,-500.0,0.00015572,2]
[408370726,1773513040498,-500.0,0.00015572,2]
[408370727,1773513040507,-500.0,0.00015572,2]
[408370728,1773513040516,-753.33121161,0.00015579,2]
[408370729,1773513040525,-168.0,0.00015581,2]
[408370730,1773513040534,-168.0,0.00015595,2]
[408370731,1773513040542,-168.0,0.00015595,2]
[408370732,1773513040552,-255.0,0.00015625,2]
[408370733,1773513040560,-168.0,0.00015628,2]
[408370734,1773513040569,-168.0,0.00015647,2]
[408370735,1773513040578,-1162.38,0.00015648,2]
[408370736,1773513040588,-500.0,0.00015648,2]
[408370737,1773513040597,-200.0,0.00015648,2]
[408370738,1773513040606,-500.0,0.00015678,2]
[408370739,1773513040616,-151.0,0.00015679,2]
[408370740,1773513040637,-204.622899,0.00015679,2]
[408370741,1773513040649,-204.622899,0.00015679,2]
[408370742,1773513040658,-204.622899,0.00015679,2]
[408370743,1773513040671,-204.622899,0.00015679,2]
[408370744,1773513040681,-500.0,0.00015684,2]
[408370745,1773513040691,-500.0,0.00015684,2]
[408370746,1773513040700,-4714.0,0.00015692,2]
[408370747,1773513040709,-151.0,0.00015692,2]
[408370748,1773513040718,-151.0,0.00015692,2]
[408370749,1773513040727,-393.568196,0.00015692,2]
[408370750,1773513040736,-393.568196,0.00015692,2]
[408370751,1773513040746,-393.568196,0.00015692,2]
[408370752,1773513040755,-393.568196,0.00015692,2]
[408370753,1773513040765,-879.22,0.00015736,2]
[408370754,1773513040774,-302.01,0.00015744,2]
[408370755,1773513040783,-878.32,0.0001579,2]
[408370756,1773513040795,-7327.40330242,0.0001581,2]
[408370757,1773513040804,-420.0,0.0001586,2]
[408370758,1773513040814,-168.0,0.00015865,2]
[408370759,1773513040824,-500.0,0.00015884,2]
[408370760,1773513040834,-500.0,0.00015884,2]
[408370761,1773513040845,-500.0,0.00015884,2]
[408370762,1773513040854,-500.0,0.00015884,2]
[408370763,1773513040863,-500.0,0.00015884,2]
[408370764,1773513040872,-500.0,0.00015884,2]
[408370765,1773513040882,-166.67,0.00015887,2]
[408370766,1773513040892,-2000.0,0.0001589,2]
[408370767,1773513040901,-180.13,0.00015899,2]
[408370768,1773513040910,-1680.0,0.00015918,2]
[408370769,1773513040919,-505.18477373,0.00015921,2]
[408370770,1773513040929,-1000.0,0.00015921,2]
[408370771,1773513040938,-652.00387375,0.00015921,2]
[408370772,1773513040947,-1000.0,0.00015921,2]
[408370773,1773513040956,-1000.0,0.00015921,2]
[408370774,1773513040965,-1162.38,0.00015922,2]
[408370775,1773513040975,-350.0,0.00015973,2]
[408370776,1773513040984,-500.0,0.00015985,2]
[408370777,1773513040993,-500.0,0.00015985,2]
[408370778,1773513041002,-324.23961228,0.00015985,2]
[408370779,1773513041011,-500.0,0.00015985,2]
[408370780,1773513041020,-529.61791857,0.00015985,2]
[408370781,1773513041029,-366.70880056,0.00016,2]
[408370782,1773513041039,-168.0,0.00016029,2]
[408370783,1773513041048,-878.32,0.00016064,2]
[408370784,1773513041058,-714.96707891,0.00016091,2]
[408370785,1773513041067,-2000.0,0.00016096,2]
[408370786,1773513041076,-825.0,0.00016114,5]
[408370787,1773513041085,-406.21,0.0001617,2]
[408370788,1773513041094,-272.874925,0.00016191,2]
[408370789,1773513041102,-1162.38,0.00016196,2]
[408370790,1773513041111,-200.0,0.00016196,2]
[408370791,1773513041124,-5000.0021194,0.000162,5]
[408370792,1773513041134,-166.66,0.00016209,2]
[408370793,1773513041142,-180.13,0.00016268,2]
[408370794,1773513041151,-174.0,0.00016314,2]
[408370795,1773513041160,-7327.40330242,0.00016321,2]
[408370796,1773513041169,-878.32,0.00016338,2]
[408370797,1773513041178,-407.24,0.00016339,2]
[408370798,1773513041187,-151.0,0.00016349,2]
[408370799,1773513041196,-151.0,0.00016349,2]
[408370800,1773513041204,-782.34,0.00016349,2]
[408370801,1773513041214,-14753.6611813,0.00016349,2]
[408370802,1773513041226,-5985.041895,0.00016349,2]
[408370803,1773513041242,-776.792584,0.00016359,2]
[408370804,1773513041251,-1600.0,0.00016372,2]
[408370805,1773513041260,-500.0,0.00016438,2]
[408370806,1773513041270,-207.39972075,0.00016438,2]
[408370807,1773513041279,-151.0,0.00016438,2]
[408370808,1773513041289,-151.0,0.00016438,2]
[408370809,1773513041298,-151.0,0.00016438,2]
[408370810,1773513041308,-151.0,0.00016438,2]
[408370811,1773513041318,-151.0,0.00016438,2]
[408370812,1773513041328,-151.0,0.00016438,2]
[408370813,1773513041339,-161.22858,0.00016438,2]
[408370814,1773513041348,-227.83171,0.00016438,2]
[408370815,1773513041358,-227.83171,0.00016438,2]
[408370816,1773513041367,-227.83171,0.00016438,2]
[408370817,1773513041376,-227.83171,0.00016438,2]
[408370818,1773513041386,-842.0,0.00016451,5]
[408370819,1773513041395,-879.22,0.00016451,2]
[408370820,1773513041404,-10000.0,0.00016466,2]
[408370821,1773513041414,-1500.0,0.00016468,2]
[408370822,1773513041423,-915.57056961,0.00016468,2]
[408370823,1773513041432,-1162.44951694,0.0001647,2]
[408370824,1773513041442,-174.0,0.00016477,2]
[408370825,1773513041451,-995.0,0.000165,2]
[408370826,1773513041461,-150.0,0.00016511,2]
[408370827,1773513041471,-500.0,0.00016511,2]
[408370828,1773513041479,-150.0,0.00016511,2]
[408370829,1773513041489,-150.0,0.00016511,2]
[408370830,1773513041498,-150.0,0.00016511,2]
[408370831,1773513041507,-150.0,0.00016511,2]
[408370832,1773513041518,-150.1763193,0.00016511,2]